bitfinex/quotes_ETHUSD_20220215
["timestamp","ask_amount","ask_price","bid_price","bid_amount"]
[1644911762364,4.74368648,3051.0,3050.9,0.43508825]
[1644911762564,3.74368648,3051.0,3050.9,0.43508825]
[1644911762963,3.74368648,3051.0,3050.8,0.00983323]
[1644911762964,5.72370454,3051.0,3050.8,0.00983323]
[1644911763170,0.81964,3050.9,3050.8,0.00983323]
[1644911763363,2.2618,3050.9,3050.3,1.2238]
[1644911763563,1.63938,3050.8,3050.3,1.2238]
[1644911763764,1.93938,3050.8,3050.7,0.00983336]
[1644911763964,1.93938,3050.8,3050.3,0.03933942]
[1644911764163,1.6393766,3050.7,3050.3,0.03933942]
[1644911764364,0.87532812,3050.5,3050.3,0.03933942]
[1644911764609,0.87532812,3050.5,3050.1,0.61433021]
[1644911764810,1.17532812,3050.5,3050.1,0.61433021]
[1644911765411,0.8196596,3050.4,3050.1,0.61433021]
[1644911765610,0.81969,3050.3,3050.1,0.61433021]
[1644911766010,0.81969,3050.3,3050.0,0.61433021]
[1644911766410,1.63937,3050.3,3050.0,0.61433021]
[1644911766810,1.63944,3050.2,3050.0,0.61433021]
[1644911767011,1.63944,3050.2,3050.0,0.00570419]
[1644911767209,0.3,3050.2,3049.9,0.61433021]
[1644911767411,0.3,3050.2,3050.0,0.01554317]
[1644911767612,0.81977,3050.2,3050.0,0.01554317]
[1644911767812,0.3,3050.1,3050.0,0.01554317]
[1644911768110,0.3,3050.1,3050.0,0.00983898]
[1644911768361,1.93951,3050.1,3049.9,0.00570419]
[1644911768564,1.11975,3050.1,3049.9,0.01554344]
[1644911768760,1.11531405,3050.1,3049.9,0.01554344]
[1644911769159,0.8197346,3050.0,3049.9,0.00983925]
[1644911769360,0.7697346,3050.0,3049.9,0.00983925]
[1644911769560,0.7697346,3050.0,3049.8,0.00570419]
[1644911769760,0.7697346,3050.0,3049.8,0.01554371]
[1644911769961,0.7697346,3050.0,3049.8,0.00983952]
[1644911770160,0.84320427,3049.9,3049.7,0.00996876]
[1644911770362,2.78291287,3049.9,3049.7,0.01567295]
[1644911770560,3.60275287,3049.9,3049.7,0.00996876]
[1644911773413,2.78291287,3049.9,3049.7,0.00996876]
[1644911773716,1.9397086,3049.9,3049.7,0.00996876]
[1644911774012,1.1198586,3049.9,3049.7,0.00996876]
[1644911775614,1.9396786,3049.9,3049.7,0.00996876]
[1644911776864,2.7595186,3049.9,3049.7,0.00996876]
[1644911777264,1.1502943,3049.8,3049.7,0.00996876]
[1644911777465,2.7595186,3049.9,3049.7,0.00996876]
[1644911778266,1.9396786,3049.9,3049.7,0.00996876]
[1644911778667,1.1198586,3049.9,3049.7,0.00996876]
[1644911779267,2.32601158,3050.0,3049.7,0.00996876]
[1644911779468,0.81984,3049.9,3049.7,0.00996876]
[1644911779711,0.8198,3049.9,3049.7,0.00996876]
[1644911779912,1.6396586,3049.9,3049.7,0.00996876]
[1644911780712,0.81986,3049.8,3049.7,0.00996876]
[1644911781111,1.88686034,3049.8,3049.7,0.00996876]
[1644911781311,2.18686034,3049.8,3049.7,0.00996876]
[1644911783110,2.18686034,3049.8,3049.7,0.3512284]
[1644911783358,2.18686034,3049.8,3049.7,0.35693259]
[1644911783759,2.17133526,3049.8,3049.7,0.35693259]
[1644911784067,1.10433492,3049.8,3049.7,0.35693259]
[1644911785764,1.10433492,3049.8,3049.6,0.01770514]
[1644911785963,1.6399277,3049.7,3049.6,0.03764266]
[1644911786366,1.6399277,3049.7,3049.6,0.027799]
[1644911787411,4.5719715,3049.7,3049.6,0.027799]
[1644911787613,5.5719715,3049.7,3049.6,0.027799]
[1644911787810,6.3141315,3049.7,3049.6,0.01993752]
[1644911788010,6.3141315,3049.7,3049.1,0.00661504]
[1644911788011,0.82,3049.4,3049.1,0.00661504]
[1644911788210,0.82,3049.4,3049.1,0.0323924]
[1644911788811,2.50692435,3049.4,3049.1,0.0323924]
[1644911789010,3.32693435,3049.4,3049.1,0.0323924]
[1644911789212,0.82001,3049.3,3049.1,0.0323924]
[1644911789612,1.12001,3049.3,3049.1,0.0323924]
[1644911789811,1.6400162,3049.4,3049.1,0.0323924]
[1644911789812,0.8200062,3049.4,3049.1,0.0323924]
[1644911790013,0.8199981,3049.3,3049.2,19.16]
[1644911790214,0.8199981,3049.3,3049.2,20.08167699]
[1644911790613,0.8199981,3049.3,3049.2,0.94745435]
[1644911790865,0.8199981,3049.3,3049.2,0.02577736]
[1644911791665,1.1199981,3049.3,3049.2,0.02577736]
[1644911791867,0.70802341,3049.6,3049.2,19.33577736]
[1644911792067,0.70802341,3049.6,3049.4,19.31]
[1644911792265,0.00542518,3049.8,3049.5,20.23167699]
[1644911792464,0.00542518,3049.8,3049.6,0.92167699]
[1644911792465,1.6392943,3049.8,3049.6,0.92167699]
[1644911792666,1.64471975,3049.8,3049.6,0.81966]
[1644911792968,0.00542545,3049.8,3049.6,6.06564983]
[1644911793166,0.00542545,3049.8,3049.6,3.38527983]
[1644911793367,0.00542545,3049.8,3049.7,19.31]
[1644911793568,0.8195752,3049.9,3049.7,20.24173139]
[1644911793766,0.82500109,3049.9,3049.8,0.92167699]
[1644911794631,0.8195752,3049.9,3049.8,4.19801738]
[1644911795028,0.1638,3051.0,3049.8,4.19801738]
[1644911795029,2.589e-05,3050.0,3049.8,28.50801738]
[1644911795223,2.589e-05,3050.0,3049.9,20.23167699]
[1644911795423,2.589e-05,3050.0,3049.9,21.05115699]
[1644911795624,2.589e-05,3050.0,3049.9,1.74115699]
[1644911795822,0.8195669,3050.1,3049.9,0.81948]
[1644911796223,0.8195669,3050.1,3050.0,0.95178202]
[1644911797224,1.6391692,3050.4,3050.1,0.81953]
[1644911797225,0.819537,3050.3,3050.1,0.81953]
[1644911797626,0.819537,3050.3,3050.1,1.74120699]
[1644911797826,0.819537,3050.3,3050.1,0.81953]
[1644911798026,0.819537,3050.3,3050.1,1.58006623]
[1644911798663,0.819537,3050.3,3050.1,0.81953]
[1644911799261,1.6391537,3050.4,3050.1,0.81953]
[1644911799262,1.27518025,3050.4,3050.1,0.81953]
[1644911799861,0.819537,3050.3,3050.0,1.58015623]
[1644911800064,0.819537,3050.3,3049.9,0.61433021]
[1644911800671,0.70262751,3050.3,3050.0,0.61433021]
[1644911800865,0.70262751,3050.3,3050.1,0.8642594]
[1644911800866,0.7068967,3050.3,3050.1,0.8642594]
[1644911801066,0.7068967,3050.3,3050.1,0.86993489]
[1644911801866,0.70262751,3050.3,3050.1,0.86993489]
[1644911802113,0.30426919,3050.4,3050.1,0.00567549]
[1644911802317,0.30426919,3050.4,3050.2,0.00567549]
[1644911802519,0.00426919,3050.4,3050.2,0.00567549]
[1644911803117,1.9391338,3050.6,3050.2,0.00567549]
[1644911803316,0.00426919,3050.5,3050.2,0.00567549]
[1644911803517,0.54141032,3050.5,3050.2,23.7494076]
[1644911803719,0.131331,3051.0,3050.4,19.92433021]
[1644911803917,0.131331,3051.0,3050.5,3.95242921]
[1644911804117,0.131331,3051.0,3050.5,0.61433021]
[1644911804519,0.131331,3051.0,3050.6,20.98799825]
[1644911804718,0.131331,3051.0,3050.7,1.57997623]
[1644911804918,0.131331,3051.0,3050.7,0.81944]
[1644911805616,0.13267152,3051.0,3050.7,20.12944]
[1644911805865,0.13267152,3051.0,3050.8,1.06555521]
[1644911806165,0.13267152,3051.0,3050.9,0.30501898]
[1644911806166,0.95216962,3051.0,3050.9,0.30501898]
[1644911806365,1.24508564,3051.0,3050.9,0.30501898]
[1644911806665,1.24374512,3051.0,3050.8,0.30501898]
[1644911806869,1.24374512,3051.0,3050.9,0.30501898]
[1644911807073,1.24374512,3051.0,3050.8,1.04588232]
[1644911807370,1.24374512,3051.0,3050.7,19.31]
[1644911807371,0.431331,3051.0,3050.9,0.30501898]
[1644911807570,0.431331,3051.0,3050.9,6.26667553]
[1644911807767,0.431331,3051.0,3050.9,6.57169451]
[1644911810817,0.431331,3051.0,3050.9,0.30501898]
[1644911811016,0.8195109,3050.9,3050.4,0.30501898]
[1644911811219,0.8195109,3050.9,3050.5,0.30515747]
[1644911811421,0.3,3050.8,3050.6,0.30515747]
[1644911811620,0.3,3050.8,3050.7,0.30515747]
[1644911811818,1.770391,3051.0,3050.7,0.30515747]
[1644911811819,0.00475366,3050.9,3050.7,0.30515747]
[1644911812019,0.00475366,3050.9,3050.8,0.30515747]
[1644911812418,0.00475366,3050.9,3050.4,0.30515747]
[1644911812619,0.81954,3050.9,3050.5,0.30515747]
[1644911812821,1.639076,3050.9,3050.6,0.30515747]
[1644911813020,0.00435417,3050.8,3050.7,0.30515747]
[1644911813219,0.30435417,3050.8,3050.7,0.30515747]
[1644911813664,0.30435417,3050.8,3050.4,0.30515747]
[1644911813864,0.8195307,3050.7,3050.5,0.3050521]
[1644911814062,0.8195307,3050.7,3050.6,0.3050521]
[1644911814264,0.8195307,3050.7,3050.4,0.3050521]
[1644911814863,0.81956,3050.6,3050.4,0.3050521]
[1644911815063,1.6391261,3050.6,3050.4,0.3050521]
[1644911815365,1.9391261,3050.6,3050.4,0.3050521]
[1644911816163,1.9391261,3050.6,3050.5,0.3050521]
[1644911816364,1.9391261,3050.6,3050.2,0.9250578]
[1644911816566,1.1195661,3050.6,3050.3,0.3050521]
[1644911817211,2.11300818,3050.6,3050.4,0.3050521]
[1644911817412,2.11300818,3050.6,3050.5,0.3050521]
[1644911817914,0.8195706,3050.4,3050.2,0.00567549]
[1644911818111,1.1195706,3050.4,3050.3,0.30495314]
[1644911819313,0.45563896,3050.6,3050.3,0.30495314]
[1644911820514,1.27517816,3050.6,3050.3,0.30495314]
[1644911820975,0.8195392,3050.6,3050.3,0.30495314]
[1644911821380,1.1195392,3050.6,3050.2,1.05210239]
[1644911821576,1.1195392,3050.6,3050.3,0.30495314]
[1644911821773,1.1195392,3050.6,3050.2,0.00567549]
[1644911821774,1.1195392,3050.6,3050.4,0.30495314]
[1644911821974,1.1195392,3050.6,3050.5,0.30495314]
[1644911822577,1.56414478,3050.6,3050.5,0.30495314]
[1644911822977,0.74457478,3050.6,3050.5,0.30495314]
[1644911825926,0.3,3050.6,3050.5,0.30495314]
[1644911826325,1.12395641,3050.7,3050.5,3.60495314]
[1644911826524,1.12395641,3050.7,3050.6,0.30495314]
[1644911827125,1.1195412,3050.7,3050.6,0.30495314]
[1644911827527,0.3,3050.7,3050.6,0.30495314]
[1644911831364,0.3,3050.7,3050.5,3.3]
[1644911831565,1.9392177,3050.7,3050.6,0.26636872]
[1644911832411,3.0588677,3050.7,3050.6,0.26636872]
[1644911833012,2.2392177,3050.7,3050.6,0.26636872]
[1644911833512,2.22541135,3050.7,3050.6,0.26636872]
[1644911834218,1.94570516,3050.5,3050.2,1.43393021]
[1644911834614,1.94570516,3050.5,3050.2,0.61433021]
[1644911835222,0.3,3050.4,3050.2,0.61433021]
[1644911835415,1.9392329,3050.4,3050.2,0.61433021]
[1644911836268,1.9392329,3050.4,3050.3,0.61433021]
[1644911836464,1.1196238,3050.4,3050.3,0.61433021]
[1644911836662,1.4196238,3050.4,3050.3,0.61433021]
[1644911837263,4.74013662,3050.4,3050.1,0.61433021]
[1644911837468,4.74013662,3050.4,3050.0,0.25447549]
[1644911837469,6.37969132,3050.4,3050.0,0.25447549]
[1644911837866,3.0591785,3050.4,3050.0,0.2488]
[1644911838266,1.63956,3050.3,3050.0,0.2488]
[1644911838468,1.7117225,3049.9,3049.7,0.54761101]
[1644911838867,0.3,3049.8,3049.7,0.54761101]
[1644911839069,0.6,3049.8,3049.7,0.54761101]
[1644911839268,0.6,3049.8,3049.7,0.5380601]
[1644911839717,0.81982,3049.9,3049.7,0.5380601]
[1644911839924,0.81982,3049.9,3049.7,0.0100544]
[1644911840119,0.8198191,3049.9,3049.7,0.0100544]
[1644911841122,0.6,3049.8,3049.7,0.0100544]
[1644911841524,1.41988,3049.8,3049.7,0.0100544]
[1644911844686,1.551256,3049.8,3049.7,0.0100544]
[1644911845091,1.551256,3049.8,3049.6,0.01572296]
[1644911845289,5.7602379,3049.7,3049.1,0.00661504]
[1644911845487,3.272,3049.6,3049.1,0.04479089]
[1644911845688,4.272,3049.6,3049.1,0.04479089]
[1644911845888,1.08130676,3049.5,3049.1,0.04479089]
[1644911846288,1.08130676,3049.5,3049.1,0.00661504]
[1644911846289,1.38130676,3049.5,3049.1,0.00661504]
[1644911846488,0.82001,3049.4,3049.1,0.00661504]
[1644911846691,0.3,3049.3,3049.1,3.30661504]
[1644911847423,1.1199357,3049.3,3049.1,3.30661504]
[1644911852667,1.9399457,3049.3,3049.1,3.30661504]
[1644911853267,1.1199357,3049.3,3049.1,3.30661504]
[1644911853669,1.9399557,3049.3,3049.1,3.30661504]
[1644911854069,1.9399557,3049.3,3049.1,3.31223547]
[1644911854270,1.1199357,3049.3,3049.2,0.21692056]
[1644911854470,1.1199357,3049.3,3049.2,0.22254099]
[1644911858868,1.1199357,3049.3,3049.2,3.38278591]
[1644911859067,1.1199357,3049.3,3049.2,0.21692056]
[1644911859367,0.3,3049.3,3049.2,3.34768782]
[1644911859569,0.45597195,3049.4,3049.2,3.34768782]
[1644911859770,0.8199357,3049.3,3049.2,4.35745162]
[1644911860279,0.951246,3049.8,3049.2,4.35745162]
[1644911860280,0.951106,3049.8,3049.3,19.31]
[1644911860482,0.131376,3049.8,3049.4,0.92942682]
[1644911860673,0.131376,3049.8,3049.5,0.21692056]
[1644911860872,0.131376,3049.8,3049.6,0.21692056]
[1644911861074,0.131376,3049.8,3049.3,0.71812651]
[1644911861075,0.819784,3049.7,3049.4,0.00983911]
[1644911861274,0.819784,3049.7,3049.5,0.18046847]
[1644911861508,1.11981,3049.7,3049.5,0.18046847]
[1644911862127,0.94265487,3049.7,3049.5,0.18046847]
[1644911862326,0.94265487,3049.7,3049.6,0.18046847]
[1644911862524,0.3,3049.7,3049.5,0.18046847]
[1644911862723,0.6,3049.7,3049.5,0.18046847]
[1644911863323,1.4198226,3049.7,3049.6,0.18046847]
[1644911863525,1.41978,3049.7,3049.6,0.18046847]
[1644911863725,0.6,3049.7,3049.5,0.18046847]
[1644911863925,0.6,3049.7,3049.6,0.18046847]
[1644911864324,0.6,3049.7,3049.5,0.18046847]
[1644911864526,1.41982,3049.7,3049.6,0.18046847]
[1644911864725,3.0595086,3049.7,3049.6,0.18046847]
[1644911864925,3.0595086,3049.7,3049.4,0.00983914]
[1644911864926,2.2396886,3049.7,3049.5,0.18046847]
[1644911865125,2.2396886,3049.7,3049.6,0.18046847]
[1644911865529,3.0594922,3049.7,3049.5,0.18046847]
[1644911865726,2.2396886,3049.7,3049.6,0.18046847]
[1644911865964,2.2396886,3049.7,3049.4,1.01010761]
[1644911866168,2.2396886,3049.7,3049.5,0.18046847]
[1644911866764,3.0594935,3049.7,3049.5,0.18046847]
[1644911866964,3.0594935,3049.7,3049.3,0.00562025]
[1644911866965,4.6992135,3049.7,3049.6,0.18046847]
[1644911867167,3.8793035,3049.7,3049.6,0.18046847]
[1644911867364,3.0594986,3049.7,3049.5,0.18046847]
[1644911867564,3.0594986,3049.7,3049.4,0.00983911]
[1644911867565,3.0594986,3049.7,3049.6,0.18046847]
[1644911867765,3.8793937,3049.7,3049.6,0.18046847]
[1644911867964,3.0594986,3049.7,3049.5,0.18046847]
[1644911868166,3.0594986,3049.7,3049.6,0.18046847]
[1644911868564,3.8794286,3049.7,3049.5,0.18046847]
[1644911868965,4.6993459,3049.7,3049.5,0.18046847]
[1644911869166,5.5192659,3049.7,3049.3,0.00562025]
[1644911869367,0.81991,3049.5,3049.3,0.00562025]
[1644911869617,0.81991,3049.5,3049.4,0.19347252]
[1644911869618,1.11991,3049.5,3049.4,0.19347252]
[1644911870415,1.41991,3049.5,3049.4,0.18363341]
[1644911871216,1.41991,3049.5,3049.3,0.01545977]
[1644911871416,2.2398319,3049.5,3049.3,0.01545977]
[1644911871616,2.2398319,3049.5,3049.4,0.18369379]
[1644911871617,1.41991,3049.5,3049.4,0.18369379]
[1644911871816,1.11991,3049.5,3049.4,0.18369379]
[1644911874464,1.11991,3049.5,3049.4,3.32161596]
[1644911874666,1.11991,3049.5,3049.4,0.18369379]
[1644911879424,0.79945642,3049.6,3049.4,0.18369379]
[1644911879920,0.81991,3049.5,3049.4,0.18369379]
[1644911881173,1.11991,3049.5,3049.4,0.18369379]
[1644911881568,2.3268975,3049.5,3049.4,0.18369379]
[1644911881969,1.11991,3049.5,3049.4,0.18369379]
[1644911882168,1.9398084,3049.5,3049.4,0.18369379]
[1644911882570,1.11991,3049.5,3049.4,0.18369379]
[1644911883570,2.32938815,3049.5,3049.4,0.18369379]
[1644911885619,3.14932815,3049.5,3049.4,0.18369379]
[1644911886323,1.11991,3049.5,3049.4,0.18369379]
[1644911886519,2.35114423,3049.5,3049.4,0.18369379]
[1644911886718,1.11991,3049.5,3049.4,0.18369379]
[1644911886918,1.11991,3049.5,3049.4,3.97268839]
[1644911887818,1.11991,3049.5,3049.4,22.66741397]
[1644911887819,0.81991,3049.5,3049.4,22.66741397]
[1644911888021,0.81991,3049.5,3049.4,24.138204]
[1644911889675,0.66973376,3049.5,3049.4,24.138204]
[1644911889873,0.81964,3049.7,3049.4,24.31783811]
[1644911890071,0.81964,3049.7,3049.6,20.13322226]
[1644911890271,0.00542477,3050.1,3049.6,20.14411793]
[1644911890471,0.00542477,3050.1,3049.9,0.61682597]
[1644911890673,0.00542477,3050.1,3050.0,4.45920375]
[1644911890877,0.81964,3050.2,3050.0,22.22056276]
[1644911891073,0.81964,3050.2,3050.1,20.96369793]
[1644911891074,0.00542557,3050.2,3050.1,20.96369793]
[1644911891972,1.63914,3050.5,3050.1,23.21919554]
[1644911892223,0.00542557,3050.3,3050.2,0.83411793]
[1644911892417,0.00542557,3050.3,3050.2,0.18369379]
[1644911893118,1.1195,3050.4,3050.2,0.18369379]
[1644911893520,1.12492557,3050.4,3050.3,0.18369379]
[1644911893719,0.30542557,3050.4,3050.3,0.18369379]
[1644911894522,0.3,3050.4,3050.3,0.18369379]
[1644911897670,0.3,3050.4,3050.3,3.31517772]
[1644911897868,0.82494557,3050.5,3050.3,3.31517772]
[1644911898069,0.81952,3050.5,3050.4,0.18369379]
[1644911898268,0.82494557,3050.5,3050.4,0.18369379]
[1644911898469,0.82494557,3050.5,3050.4,22.59941167]
[1644911899069,0.82494557,3050.5,3050.4,3.28941167]
[1644911899272,0.81952,3050.5,3050.4,0.18369379]
[1644911899469,0.45871173,3050.6,3050.4,1.00326379]
[1644911899717,0.45871173,3050.6,3050.5,0.18369379]
[1644911900523,0.45328616,3050.6,3050.5,0.18369379]
[1644911903869,0.45328616,3050.6,3050.5,3.48369379]
[1644911907419,0.45328616,3050.6,3050.5,4.42446442]
[1644911907620,0.45328616,3050.6,3050.5,3.48369379]
[1644911916431,0.82497907,3050.7,3050.5,26.91486363]
[1644911916432,0.00542557,3050.7,3050.5,26.91486363]
[1644911916631,0.00542557,3050.7,3050.6,20.70229379]
[1644911917029,0.00542557,3050.7,3050.6,2.21168379]
[1644911917332,0.8194607,3051.1,3050.6,3.11667215]
[1644911917535,0.81949,3050.9,3050.7,0.18369379]
[1644911917731,0.81949,3050.9,3050.6,2.11358836]
[1644911917732,1.63895,3051.0,3050.8,0.18369379]
[1644911917929,1.63895,3051.0,3050.9,0.18369379]
[1644911919369,1.10064305,3051.0,3050.9,0.18369379]
[1644911922151,3.94146619,3051.0,3050.5,3.3]
[1644911922346,2.06880384,3050.9,3050.5,3.3]
[1644911922549,1.72109384,3050.8,3050.5,3.3]
[1644911922747,1.54909384,3050.7,3050.6,0.13204326]
[1644911923151,1.54909384,3050.7,3050.6,0.13203739]
[1644911923152,0.3,3050.7,3050.6,0.13203739]
[1644911923348,1.54934357,3050.7,3050.6,0.13203739]
[1644911923548,0.3,3050.7,3050.6,0.13203739]
[1644911923748,0.82399065,3050.8,3050.6,0.13203739]
[1644911924150,1.25004687,3050.7,3050.6,0.13203739]
[1644911924649,1.64356275,3050.8,3050.6,0.13203739]
[1644911924849,1.2500437,3050.7,3050.6,0.13203739]
[1644911925052,1.64356275,3050.8,3050.6,0.13203739]
[1644911925649,1.6392421,3050.8,3050.6,0.13203739]
[1644911926269,1.55023752,3050.7,3050.6,0.13203739]
[1644911927772,1.25023752,3050.7,3050.6,0.13203739]
[1644911931420,2.17919684,3050.7,3050.6,0.13203739]
[1644911934370,1.25023752,3050.7,3050.6,0.13203739]
[1644911936069,1.55023752,3050.7,3050.6,0.13203739]
[1644911936669,2.02223752,3050.7,3050.6,0.13203739]
[1644911937120,1.59174,3050.7,3050.5,3.3]
[1644911937320,1.59174,3050.7,3050.6,0.11476133]
[1644911937321,2.86443437,3050.7,3050.6,0.11476133]
[1644911937520,2.86443984,3050.7,3050.6,0.11476133]
[1644911938522,4.68419984,3050.7,3050.6,0.11476133]
[1644911938723,4.50395984,3050.7,3050.6,0.11476133]
[1644911938925,4.50395984,3050.7,3050.5,3.3]
[1644911938926,3.2312727,3050.7,3050.5,3.3]
[1644911939127,3.2312727,3050.7,3050.6,0.11471037]
[1644911939325,4.50327341,3050.7,3050.6,0.11471037]
[1644911939524,5.32304341,3050.7,3050.6,0.1147153]
[1644911939725,5.32304341,3050.7,3050.5,3.3]
[1644911939925,1.27200071,3050.6,3050.5,3.3]
[1644911940426,1.27200071,3050.6,3050.5,3.41470205]
[1644911940629,1.27200071,3050.6,3050.5,3.29905227]
[1644911941077,1.27200071,3050.6,3050.5,3.40860489]
[1644911941976,2.09171071,3050.6,3050.5,3.40860489]
[1644911945825,1.74400071,3050.6,3050.5,3.40860489]
[1644911946521,0.95556025,3050.7,3050.5,3.40860489]
[1644911946724,0.95556025,3050.7,3050.5,3.29389475]
[1644911946923,0.52133215,3050.8,3050.6,3.7644835]
[1644911947123,0.82319423,3050.9,3050.7,0.1144835]
[1644911947421,0.82319423,3050.9,3050.5,3.29389475]
[1644911947422,1.27927246,3050.8,3050.5,3.29389475]
[1644911947622,1.27927246,3050.8,3050.6,0.106459]
[1644911948022,1.27927246,3050.8,3050.6,0.925949]
[1644911948223,1.27927246,3050.8,3050.7,0.106459]
[1644911949076,1.64266863,3050.9,3050.7,20.12946]
[1644911949077,0.00348423,3050.9,3050.7,20.12946]
[1644911949283,1.27907098,3051.1,3050.9,19.31]
[1644911949494,2.09846098,3051.0,3050.8,0.81935]
[1644911949676,2.09846098,3051.0,3050.9,0.1064283]
[1644911949677,0.81939,3051.0,3050.9,0.1064283]
[1644911950076,2.91220161,3051.0,3050.6,0.1064283]
[1644911950276,1.26973362,3050.9,3050.7,0.1064283]
[1644911950477,2.08929362,3050.9,3050.7,0.1064283]
[1644911951379,0.0088866,3051.0,3050.7,19.31]
[1644911951597,0.00540237,3051.0,3050.9,19.31]
[1644911951778,0.00540237,3051.0,3050.9,0.09888899]
[1644911951978,1.30621567,3051.0,3050.9,0.09888899]
[1644911952225,1.30429753,3051.0,3050.9,0.09888899]
[1644911952629,2.12370753,3051.0,3050.9,0.09888899]
[1644911953423,1.30429753,3051.0,3050.9,19.40888899]
[1644911953827,0.00348423,3051.0,3050.9,19.98585014]
[1644911954024,0.30162825,3051.1,3050.9,20.80523014]
[1644911954224,0.30511248,3051.1,3051.0,0.09888899]
[1644911954424,0.3,3051.1,3051.0,0.09888899]
[1644911954626,1.60052999,3051.1,3051.0,0.09888899]
[1644911955026,1.30052999,3051.1,3051.0,0.09888899]
[1644911955224,1.60052999,3051.1,3051.0,0.09888899]
[1644911956472,0.0088866,3051.2,3051.0,0.09888899]
[1644911956672,0.0088866,3051.2,3051.1,20.22800899]
[1644911956673,0.00540237,3051.2,3051.1,20.22800899]
[1644911956972,0.131297,3051.8,3051.1,20.80427863]
[1644911957172,0.00540237,3051.3,3051.2,0.09888899]
[1644911957372,0.00540237,3051.3,3051.2,19.9850948]
[1644911957772,0.00540237,3051.3,3051.2,20.9850948]
[1644911958173,0.62223587,3052.5,3051.2,20.95328882]
[1644911958374,0.00348423,3052.5,3051.6,19.31]
[1644911958572,1.30930385,3052.6,3051.7,0.07461545]
[1644911958775,1.31278808,3052.5,3051.7,0.07461545]
[1644911958971,1.30930385,3052.4,3051.7,0.07461545]
[1644911959172,1.30930385,3052.3,3051.7,0.07461545]
[1644911959373,1.31278808,3052.2,3051.7,0.07461545]
[1644911959624,2.12847385,3052.1,3051.7,0.07461545]
[1644911959824,1.30930385,3052.0,3051.7,3.20767996]
[1644911960024,1.31278808,3051.9,3051.8,0.07461545]
[1644911960627,1.31278808,3051.9,3051.7,0.07461545]
[1644911960826,0.00348423,3051.9,3051.8,0.07461545]
[1644911961029,1.29958489,3051.9,3051.8,0.07461545]
[1644911961430,1.29958489,3051.9,3051.8,3.18526633]
[1644911961628,0.00348423,3052.2,3051.8,0.07461545]
[1644911961826,2.12129973,3052.3,3051.7,3.15179108]
[1644911962026,2.12129973,3052.3,3051.8,0.09136216]
[1644911962027,0.00540237,3052.0,3051.8,0.09136216]
[1644911962226,0.0088866,3052.0,3051.9,0.09136216]
[1644911962428,0.00540237,3052.0,3051.9,0.09136216]
[1644911962628,0.00540237,3052.0,3051.8,3.58823207]
[1644911962826,0.00540237,3052.0,3051.9,0.09136216]
[1644911963026,0.02508875,3052.7,3051.8,3.13670819]
[1644911963027,0.81915,3052.1,3051.8,3.13670819]
[1644911963227,1.29252743,3052.0,3051.9,20.39635523]
[1644911963477,0.0088866,3052.1,3051.9,1.08635523]
[1644911963686,0.00540237,3052.1,3052.0,3.11466942]
[1644911964080,1.28813519,3052.1,3051.9,1.08635523]
[1644911964278,0.00348423,3052.1,3052.0,3.10758196]
[1644911964478,0.00540237,3052.2,3051.9,1.08635523]
[1644911964678,0.0088866,3052.2,3052.0,3.12779083]
[1644911964880,0.0088866,3052.2,3051.9,1.08635523]
[1644911965078,0.0088866,3052.2,3051.8,4.97382315]
[1644911965278,1.2881299,3052.1,3051.8,4.97382315]
[1644911965480,0.00348423,3052.0,3051.7,6.17846]
[1644911965680,0.00348423,3052.0,3051.7,6.39118641]
[1644911965881,0.0088866,3052.2,3051.7,7.21034641]
[1644911966079,0.0088866,3052.2,3051.7,7.21035641]
[1644911966479,0.81916,3052.1,3051.7,6.39118641]
[1644911966683,0.00348423,3052.0,3051.7,6.39118641]
[1644911967127,0.00348423,3052.0,3051.7,7.21033641]
[1644911967526,0.00268423,3052.0,3051.7,7.21033641]
[1644911967926,0.0080866,3052.0,3051.7,7.21033641]
[1644911968826,0.00268423,3052.0,3051.7,8.02948641]
[1644911969124,0.0080866,3052.0,3051.7,4.9383]
[1644911969331,1.28684015,3051.9,3051.7,3.3]
[1644911969527,3.35885335,3051.8,3051.7,3.3]
[1644911969725,1.28684015,3051.8,3051.7,3.3]
[1644911970125,1.119368,3051.9,3051.7,3.3]
[1644911970326,1.28705242,3051.8,3051.7,3.3]
[1644911970976,1.12477037,3051.9,3051.7,3.3]
[1644911971378,1.28691833,3051.8,3051.7,3.3]
[1644911973979,4.84832689,3051.8,3051.7,3.3]
[1644911974179,1.28691833,3051.8,3051.7,3.3]
[1644911981880,1.28691833,3051.8,3050.6,0.1638]
[1644911981881,6.46942,3051.7,3050.6,0.1638]
[1644911982128,1.28691833,3051.6,3050.4,9.1219]
[1644911982332,1.28960256,3051.5,3050.5,1.23813348]
[1644911982532,1.28691833,3051.4,3050.6,0.07483348]
[1644911982729,1.28691833,3051.3,3050.6,0.07483348]
[1644911982931,0.81943,3051.2,3050.8,1.6563714]
[1644911983229,0.3,3051.1,3050.9,0.07483348]
[1644911983430,0.00268423,3051.4,3050.9,19.38483348]
[1644911983630,0.00540237,3051.2,3051.0,0.07483348]
[1644911984229,0.00540237,3051.2,3051.1,0.8192]
[1644911984427,0.00540237,3051.2,3051.1,0.89403348]
[1644911984628,0.00268423,3051.6,3051.3,1.0636841]
[1644911984829,0.00268423,3051.6,3051.4,0.07483348]
[1644911985032,0.62223587,3052.5,3051.4,0.07483348]
[1644911985033,0.00268423,3052.3,3051.4,0.07483348]
[1644911985329,0.8191088,3052.2,3051.5,0.81916]
[1644911985528,1.30844317,3052.1,3051.6,0.07483348]
[1644911985730,1.30575894,3052.0,3051.6,0.07483348]
[1644911985976,0.8272466,3052.0,3051.5,0.07483348]
[1644911986178,2.42493244,3051.9,3051.6,0.07472335]
[1644911986376,2.42493244,3051.9,3051.4,2.45748]
[1644911986377,1.30575894,3051.8,3051.4,1.63827]
[1644911986575,1.30844317,3051.8,3051.5,0.07474304]
[1644911986875,1.30844317,3051.8,3051.5,0.89394304]
[1644911987076,1.30844317,3051.8,3051.6,0.07474304]
[1644911987277,0.81943,3051.7,3051.3,4.4434]
[1644911987479,1.30844317,3051.6,3051.3,3.3]
[1644911987977,1.60844317,3051.6,3051.3,3.3]
[1644911988177,1.30575894,3051.5,3051.3,3.3]
[1644911988379,1.1274666,3051.6,3051.4,0.0840208]
[1644911988578,1.29789462,3051.5,3051.4,0.0840208]
[1644911988777,1.29789462,3051.5,3051.3,3.3]
[1644911989629,1.29789462,3051.5,3051.4,0.08414105]
[1644911989832,1.29789462,3051.5,3051.3,3.3]
[1644911990234,1.29789462,3051.5,3051.4,0.05414133]
[1644911995998,1.2866559,3051.6,3051.4,0.05414133]
[1644911996400,1.5866559,3051.6,3051.4,0.05414133]
[1644911996598,1.58125353,3051.6,3051.4,0.05414133]
[1644911999027,0.82206423,3051.6,3051.4,0.05414133]